Cogmind - Beta 11.1 @@@ ROGUE MODE // 2022.10.07 @ 15:37:38 Player: Zirov Result: Self-destructed Performance ------------- Evolutions (0) 0 Regions Visited (4) 800 Robots Destroyed (15) 75 Value Destroyed (380) 380 Prototype IDs (23) 460 Alien Tech Used (0) 0 Bonus (224) 224 TOTAL SCORE: 1939 Bonus ------- Aligned with FarCom 300 Friendly Fire -76 Cogmind --------- Core Integrity 115/250 Matter 251/300 Energy 18/250 System Corruption 20% Temperature Cool (15) Movement Treading (240) Ox1 Location -9/Mines Parts ------- > --- POWER (1) -------- Ion Engine > --- PROPULSION (2) --- Light Treads > --- UTILITY (2) ------ Heat Sink Medium Storage Unit > --- WEAPON (2) ------- Latent Energy Streamer Assault Rifle > --- INVENTORY (10) --- Ion Engine Light Nuclear Core Large Storage Unit Huge Storage Unit Experimental Sensor Array Seismic Detector Medium Laser Grenade Launcher Peak State ------------ > --- POWER ------------ Ion Engine > --- PROPULSION ------- Light Treads Light Treads > --- UTILITY ---------- Heat Sink Medium Storage Unit > --- WEAPON ----------- Latent Energy Streamer Assault Rifle > --- INVENTORY -------- Ion Engine Light Nuclear Core Heat Sink Large Storage Unit Huge Storage Unit Experimental Sensor Array Seismic Detector Medium Laser Assault Rifle Grenade Launcher [Rating: 18] Favorites ----------- Power Ion Engine Engine Ion Engine Propulsion Light Treads Treads Light Treads Utility Medium Storage Unit Device Heat Sink Storage Medium Storage Unit Weapon Assault Rifle Energy Gun Medium Laser Energy Cannon Latent Energy Streamer Ballistic Gun Assault Rifle Build | -11 -10 -10 -10 -9 ------- Run | Scr Mat Min Exi Min Slots Evolved . | . . . . . Power . | . . . . . Propulsion . | . . . . . Utility . | . . . . . Weapon . | . . . . . Parts Attached 11 | 6 2 . . 3 Power 1 | 1 . . . . Engine 1 | 1 . . . . Core . | . . . . . Reactor . | . . . . . Propulsion 2 | 2 . . . . Treads 2 | 2 . . . . Leg . | . . . . . Wheel . | . . . . . Hover . | . . . . . Flight . | . . . . . Utility 4 | 1 2 . . 1 Device 2 | . 1 . . 1 Storage 2 | 1 1 . . . Processor . | . . . . . Hackware . | . . . . . Protection . | . . . . . Artifact . | . . . . . Weapon 4 | 2 . . . 2 Energy Gun 1 | 1 . . . . Energy Cannon 1 | . . . . 1 Ballistic Gun 2 | 1 . . . 1 Ballistic Cannon . | . . . . . Launcher . | . . . . . Special Weapon . | . . . . . Impact Weapon . | . . . . . Slashing Weapon . | . . . . . Piercing Weapon . | . . . . . Special Melee Weapon . | . . . . . Unidentified Prototypes . | . . . . . Parts Lost 3 | . . . . 3 Power . | . . . . . Propulsion 1 | . . . . 1 Utility 1 | . . . . 1 Weapon 1 | . . . . 1 Highest Loss Streak 2 | . . . . 2 To Critical Strikes . | . . . . . Average Slot Usage (%) 98 | . 89 100 100 97 Engine 14 | . 14 14 14 14 Treads 27 | . 28 28 28 26 Device 12 | . 4 14 14 13 Storage 14 | . 14 14 14 14 Energy Gun 12 | . 14 14 14 . Energy Cannon 1 | . . . . 14 Ballistic Gun 14 | . 14 14 14 14 Naked Turns . | . . . . . Heaviest Build 28 | 14 20 20 20 28 Greatest Support 40 | 40 40 40 40 40 Greatest Overweight (x) 1 | 1 . . . . Average Overweight (x) . | . . . . . Largest Inventory Capacity 10 | 8 10 10 10 10 Average Capacity 9 | 7 9 10 10 10 Most Carried 10 | 1 5 9 10 10 Average Carried 6 | . 3 6 9 9 Final Capacity 10 | 8 10 10 10 10 Final Carried 10 | 1 5 9 10 8 Class Distribution -------------------- 100% | Mutant Dominant Class ---------------- Mutant | -10/Materials Mutant | -10/Mines Mutant | -10/Exiles Mutant | -9/Mines Resources | -11 -10 -10 -10 -9 ----------- Run | Scr Mat Min Exi Min Matter Collected 363 | 207 102 54 . . Remotely . | . . . . . Salvage Created 528 | . 102 212 . 214 Parts 34 | . 7 18 . 9 Haulers Intercepted . | . . . . . Recyclers Shooed . | . . . . . Parts Field Recycled . | . . . . . Retrieved Matter . | . . . . . Parts Self-Destructed . | . . . . . Prevented . | . . . . . Kills | -11 -10 -10 -10 -9 ------- Run | Scr Mat Min Exi Min Combat Hostiles Destroyed 16 | . 2 8 . 6 Guns 10 | . 2 8 . . AOE 6 | . . . . 6 Classes Destroyed 7 | . 2 3 . 2 Tunneler 2 | . . 2 . . Recycler 1 | . . . . 1 Watcher 1 | . 1 . . . Swarmer 3 | . . 3 . . Grunt 7 | . 2 3 . 2 Zionite 1 | . . . . 1 Assembled 6 | . . 2 . 4 Best Kill Streak 4 | . 1 3 . 4 Combat Bots Only 3 | . 1 3 . 3 Max Kills in Single Turn 3 | . 1 1 . 3 Gunslinging . | . . . . . Exploded 2 | . . . . 2 Melee . | . . . . . Uniques/NPCs Destroyed . | . . . . . Combat | -11 -10 -10 -10 -9 -------- Run | Scr Mat Min Exi Min Damage Taken 815 | . 83 206 . 526 Core 135 | . 21 47 . 67 Absorbed by Shields . | . . . . . Core Remaining (%) 100 | 100 . . . . Volleys Fired 43 | . 11 19 . 13 Largest 2 | . 2 2 . 2 Hottest 80 | . 70 70 . 80 Shots Fired 77 | . 22 38 . 17 Gun 69 | . 22 38 . 9 Cannon 8 | . . . . 8 Launcher . | . . . . . Special . | . . . . . Kinetic 39 | . 11 19 . 9 Thermal 30 | . 11 19 . . Explosive . | . . . . . Electromagnetic 8 | . . . . 8 Robot Hit Streak 12 | . 4 12 . 6 Robot Miss Streak 5 | . 4 5 . 2 Penetration Max . | . . . . . Secondary Targets 1 | . . 1 . . Max Gunslinging Chain 1 | . . 1 . . Shots Hit Robots 43 | . 12 25 . 6 Core Hits 37 | . 5 16 . 16 Critical Kills . | . . . . . Critical Parts Destroyed . | . . . . . Critical Strikes 3 | . . 3 . . Burn 3 | . . 3 . . Melee Attacks . | . . . . . Impact . | . . . . . Slashing . | . . . . . Piercing . | . . . . . Sneak Attacks . | . . . . . Combat Hostiles . | . . . . . Follow-up Attacks . | . . . . . Damage Inflicted 1188 | . 152 324 . 712 Guns 477 | . 152 298 . 27 Cannons 27 | . . . . 27 Explosions 658 | . . . . 658 Melee . | . . . . . Ramming 26 | . . 26 . . Kinetic 212 | . 77 108 . 27 Thermal 265 | . 75 190 . . Explosive . | . . . . . Electromagnetic 685 | . . . . 685 Impact . | . . . . . Slashing . | . . . . . Piercing . | . . . . . Highest Corruption 20 | . . . . 20 Average Corruption 9 | . . . . 9 Corruption Purged . | . . . . . Corruption Blocked . | . . . . . Effects 5 | . . . . 5 Message Errors 1 | . . . . 1 Matter Fused 1 | . . . . 1 Heat Flow Errors 2 | . . . . 2 Data Loss (minor) 1 | . . . . 1 Overload Shots . | . . . . . Overflow Damage 13 | . . . . 13 Projectiles . | . . . . . Explosions 13 | . . . . 13 Melee . | . . . . . Knockbacks . | . . . . . Impact . | . . . . . Kinetic . | . . . . . Secondary . | . . . . . Self-Inflicted Damage 99 | . . . . 99 Shots 5 | . . . . 5 Rammed 6 | 1 . 5 . . Targets Rammed 7 | 1 . 6 . . Kicked . | . . . . . Crushed 1 | . . 1 . . Highest Temperature 177 | . 60 2 . 177 Average Temperature 52 | . 28 1 . 92 Received Heat Transfer 291 | . 48 93 . 150 Siege Activations . | . . . . . Robots Corrupted . | . . . . . Combat Hostiles . | . . . . . Parts Fried . | . . . . . Impact Corruptions . | . . . . . Robots Melted . | . . . . . Combat Hostiles . | . . . . . Parts Melted 1 | . . 1 . . Heat Transferred 999 | . 222 777 . . Parts Sabotaged . | . . . . . Parts Stolen . | . . . . . Parts Stripped . | . . . . . Power Chain Reactions . | . . . . . Missiles Intercepted . | . . . . . Latent Energy Used 579 | . . . . 579 LE Corruption 12 | . . . . 12 Alert | -11 -10 -10 -10 -9 ------- Run | Scr Mat Min Exi Min Peak Influence 187 | . 132 150 . 187 Initial . | . . . . . Average 38 | . 48 24 . 128 Maximum Alert Level . | . . . . . Low Security (%) 100 | 100 100 100 . 100 Level 1 . | . . . . . Level 2 . | . . . . . Level 3 . | . . . . . Level 4 . | . . . . . Level 5 . | . . . . . High Security . | . . . . . Max Security . | . . . . . Squads Dispatched 1 | . 1 . . . Investigation . | . . . . . Extermination . | . . . . . Reinforcement 1 | . 1 . . . Assault . | . . . . . Garrison . | . . . . . Intercept . | . . . . . Searches Triggered . | . . . . . Construction Impeded . | . . . . . Haulers Reinforced . | . . . . . Active Scanning Responses . | . . . . . Cargo Convoy Interrupts . | . . . . . Stealth | -11 -10 -10 -10 -9 --------- Run | Scr Mat Min Exi Min Distress Signals 1 | . . . . 1 Communications Jammed . | . . . . . Distress Signals . | . . . . . Times Spotted 33 | . 7 11 . 15 Peak Tracking Total 13 | . 2 3 . 13 Tactical Retreats 2 | . 1 . . 1 Traps | -11 -10 -10 -10 -9 ------- Run | Scr Mat Min Exi Min Traps Triggered . | . . . . . Indirectly . | . . . . . Trap Hack Attempts . | . . . . . Triggered . | . . . . . Disarmed . | . . . . . Reprogrammed . | . . . . . Reused . | . . . . . Traps Extracted . | . . . . . Installed . | . . . . . Triggered . | . . . . . Machines | -11 -10 -10 -10 -9 ---------- Run | Scr Mat Min Exi Min Machines Disabled 5 | . . . . 5 Max in Single Turn 4 | . . . . 4 Machines Sabotaged . | . . . . . Garrisons Compromised . | . . . . . Overloaded Fab Kills . | . . . . . Hacking | -11 -10 -10 -10 -9 --------- Run | Scr Mat Min Exi Min Machines Accessed 2 | . 1 . 1 . Terminals 1 | . 1 . . . Fabricators . | . . . . . Repair Stations . | . . . . . Recycling Units . | . . . . . Scanalyzers . | . . . . . Garrison Access . | . . . . . Total Hacks 5 | . 4 . 1 . Successful 3 | . 2 . 1 . Failed 2 | . 2 . . . Catastrophic 1 | . 1 . . . Database Lockouts . | . . . . . Manual 3 | . 2 . 1 . Terminals 4 | . 4 . . . Fabricators . | . . . . . Repair Stations . | . . . . . Recycling Units . | . . . . . Scanalyzers . | . . . . . Garrison Access . | . . . . . Terminal Hacks 3 | . 2 . 1 . Terminal Index 1 | . 1 . . . Unreport Threat 1 | . 1 . . . EX-Prototype ID Bank 1 | . . . 1 . Fabricator Hacks . | . . . . . Repair Station Hacks . | . . . . . Recycling Unit Hacks . | . . . . . Scanalyzer . | . . . . . Garrison Access Hacks . | . . . . . Unauthorized Hacks . | . . . . . Terminals . | . . . . . Fabricators . | . . . . . Repair Stations . | . . . . . Recycling Units . | . . . . . Scanalyzers . | . . . . . Garrison Access . | . . . . . Data Cores Recovered . | . . . . . Used . | . . . . . Hacking Detections 1 | . 1 . . . Full Trace Events . | . . . . . Feedback Events . | . . . . . Feedback Blocked . | . . . . . Robot Schematics Acquired . | . . . . . Robots Built . | . . . . . Authchips . | . . . . . Time . | . . . . . Total Robot Build Rating . | . . . . . Part Schematics Acquired . | . . . . . Parts Built . | . . . . . Authchips . | . . . . . Time . | . . . . . Total Part Build Rating . | . . . . . Parts Repaired . | . . . . . Time . | . . . . . Parts Recycled . | . . . . . Recycled Matter . | . . . . . Retrieved Matter . | . . . . . Retrieved Components . | . . . . . Parts Scanalyzed . | . . . . . Part Schematics Acquired . | . . . . . Parts Damaged . | . . . . . Bothacking | -11 -10 -10 -10 -9 ------------ Run | Scr Mat Min Exi Min Used RIF Installer . | . . . . . Robots Hacked . | . . . . . Non-combat . | . . . . . Combat . | . . . . . Robot Hacks Applied . | . . . . . Relay Couplers Released . | . . . . . Fabnet Peak Effective % . | . . . . . Robots Rewired . | . . . . . Allies Hacked . | . . . . . Hacks Repelled . | . . . . . Allies | -11 -10 -10 -10 -9 -------- Run | Scr Mat Min Exi Min Total Allies . | . . . . . Largest Group . | . . . . . Highest-Rated Group . | . . . . . Highest-Rated Ally . | . . . . . Total Orders . | . . . . . Ally Attacks . | . . . . . Total Damage . | . . . . . Kills . | . . . . . Allies Corrupted . | . . . . . Allies Melted 1 | . . . . 1 Intel | -11 -10 -10 -10 -9 ------- Run | Scr Mat Min Exi Min Robot Analysis Total . | . . . . . Derelict Logs Recovered 3 | . . 2 . 1 Drone Launches . | . . . . . Drone Recoveries . | . . . . . Exploration | -11 -10 -10 -10 -9 ------------- Run | Scr Mat Min Exi Min Turns Passed 2145 | 87 274 1228 353 203 Spaces Moved 1150 | 50 143 662 219 76 Core 4 | 4 . . . . Treads 1146 | 46 143 662 219 76 Legs . | . . . . . Wheels . | . . . . . Hover . | . . . . . Flight . | . . . . . Fastest Speed 50 | 50 160 160 160 160 Average Speed 159 | 153 160 160 160 160 Slowest Speed 160 | 160 160 160 160 160 Overloaded Moves . | . . . . . Propulsion Burnouts . | . . . . . Robots Hopped . | . . . . . Cave-ins Triggered . | . . . . . Exploration Rate (%) 43 | 5 21 97 61 31 Regions Visited 4 Branch Regions 3 Pre-discovered Areas 1 | . . 1 . . Known Exits Taken . | . . . . . Unknown Exits Taken 4 | 1 1 1 1 . Scrap Searched 1 | . . 1 . . Spaces Dug . | . . . . . Terrain Destroyed 19 | . . . . 19 Melee . | . . . . . Projectile . | . . . . . AOE 19 | . . . . 19 Terrain Rammed . | . . . . . Walls Destroyed . | . . . . . Machines Disabled . | . . . . . Actions | -11 -10 -10 -10 -9 --------- Run | Scr Mat Min Exi Min Total 1373 | 57 166 789 222 139 Wait 154 | . 5 99 3 47 Move 1146 | 49 142 661 218 76 Hop . | . . . . . Pick Up 10 | 1 4 4 1 . Fast Attach 8 | 6 2 . . . Attach 2 | . . . . 2 Detach 1 | . 1 . . . Swap 1 | . . . . 1 Drop 1 | . 1 . . . Fire 43 | . 11 19 . 13 Melee . | . . . . . Ram . | . . . . . Kick . | . . . . . Crush 7 | 1 . 6 . . Escape Stasis . | . . . . . Rewire . | . . . . . Trap . | . . . . . Miscellaneous . | . . . . . Route ------- -11/Scrapyard -10/Materials -10/Mines (discovered 3 exits: [*Mat x2] / *Exi) -10/Exiles -9/Mines (discovered 1 exit: [*Mat]) History --------- Turn | Location | Event 23 | -11/Scrapyard | Discovered new exit (range 16) 88 | -11/Scrapyard | Entered Materials 280 | -10/Materials | Discovered new exit (range 9) 314 | -10/Materials | Build established: Mutant 362 | -10/Materials | Entered Mines 363 | -10/Mines | Met a Derelict bent on vengeance 478 | -10/Mines | Deemed a non-threat by the Exiles lab entrance 478 | -10/Mines | Discovered new exit (range 5) 629 | -10/Mines | Learned location of Storage (-9) 716 | -10/Mines | Excavation squad dispatched 716 | -10/Mines | A large section of the Mines collapsed 932 | -10/Mines | Learned location of 1 exit from Materials 975 | -10/Mines | Discovered new exit (range 5) 1048 | -10/Mines | Discovered new exit (range 5) 1216 | -10/Mines | Found a damaged Exp. Sensor Array with a note attached 1219 | -10/Mines | Found Prototype Device 1332 | -10/Mines | Learned location of 1 exit from Materials 1590 | -10/Mines | Entered Exiles 1628 | -10/Exiles | Met 8R-AWN 1657 | -10/Exiles | Met EX-HEX 1702 | -10/Exiles | Met EX-BIN 1724 | -10/Exiles | Aligned with FarCom system 1726 | -10/Exiles | Given EX-Vault access code 1763 | -10/Exiles | Opened EX-Vault 1777 | -10/Exiles | Found Latent Energy Streamer 1812 | -10/Exiles | Warned to stay clear of 0b10 Research branches 1829 | -10/Exiles | Exiles lab attacked by MAIN.C 1922 | -10/Exiles | Discovered new exit (range 14) 1943 | -10/Exiles | Left Exiles lab with Latent Energy Streamer 1943 | -10/Exiles | Entered Mines 2000 | -9/Mines | Assembled infested the area 2005 | -9/Mines | Assisted by a Guerilla fighting off Assembled 2075 | -9/Mines | System corruption reached 10% 2116 | -9/Mines | Discovered new exit (range 10) 2136 | -9/Mines | Core integrity fell below 50% 2146 | -9/Mines | Self-destructed Last Messages --------------- 02047_ Destroyed Mak. Leg. 02047_ ZX-C33 destroyed. 02065_ as-28939 destroyed. 02065_ Core Extractor disabled. 02065_ as-63627 destroyed. 02069_ IZJ#>9J&G TA F |R SLC3L9MG 02074_ Assault Rifle destroyed. 02074_ Heat Sink destroyed. 02074_ System corrupted by crushing effect (+1). 02074_ System corrupted by crushing effect (+5). 02084_ System corrupted: Heat flow error (+187). 02084_ K-01 Serf collects debris. 02086_ as-93821 destroyed. 02101_ System corrupted: Heat flow error (+146). 02116_ EXIT=FOUND 02123_ System corrupted: Component data lost. 02126_ Lgt. Treads destroyed. 02127_ G-34 Mercenary IFF system glitched. 02128_ G-47 Trooper misfires. 02139_ Critical hit (Burn: +37). Map ----- +----------------------------------------------------+ | | | | | | | | | | | | | | | | | | | | | | | | | | | | | | | | | | | | | ?????????????????????????????????????????????????? | | ?????????????????????????????????????????????????? | | ????????????????????????????????###??????????????? | | ??????????????????????????####?# ##?????????????? | | ?????????????????????????## ## ##????????????? | | ??????????????# ????????# #????????????? | | ??????????????# ###### #????????????? | | ??????????????# < g @ #????????????? | | ??????????????# g #?????????????? | | ??????????????# ##### #?????????????? | | ??????????????###???????# #?????????????? | | ????????????????????????##% ##????????????? | | ?????????????????????????# ###??????????? | | ?????????????????????????# ##?????????? | | ?????????????????????????## #?????????? | | ??????????????????????????## #?????????? | | ???????????????????????????##; #?????????? | | ????????????????????????????#; ## ##????????? | | ????????????????????????????##%### ##???????? | | ?????????????????????????????# #?## ##??????? | | ???????????????????????????# %!;### #??????# | | ???????????????????????????# =%* ##?????# | | ???????????????????????????# %= #????## | | ???????????????????????????# #### ##???# | | ???????????????????????????## #??##### ##??# | | ????????????????????????????? ##??????## #??# | | ????????????????????????????? ?????????## #?## | | ????????????????????????????? ??????????## #### | | ?????????????????????????????#?# ??????### | | ???????????????????????????????# ### ### | | ???????????????????????????????# ### | | ???????????????????????????????# # ## | +----------------------------------------------------+ Best States ------------- Heat Dissipation 35 Energy Generation 10 Energy Capacity 250 Matter Stores 300 Matter Capacity 300 Sight Range 16 Terrain Scan Density 10 Evasion (%) 40 Recoil Reduction 2 Item Schematics ----------------- None Robot Schematics ------------------ None Fabricated ------------ Nothing Alien Tech Used ----------------- None Achievements -------------- None Challenges ------------ None Game ------ Seed PrecisionPointyWand Manual? 0 Play Time 00:12:25 Cumulative 32.0 hours Start 2022.10.06 @ 05:10:47 End 2022.10.07 @ 15:37:38 Sessions 3 Manual Loads 0 Difficulty Rogue Special Mode None Game No. 33 Rogue 33 Adventurer 0 Explorer 0 Win Type - Total 0 Types 0/0/0/0/0/0/0/0/0 Lore% 24 Gallery% 28 Achievement% 22 Wizard Run 0 Options --------- ASCII 1 Keyboard 1 Movement Numpad Keybinds 0 Fullscreen 1 Font 18/SmallcapsGlow Map View 76x50 Tactical HUD 1 Map Filters NONE Filters NONE Steam 1 RUN: c9b25528-9fb0-4868-85fa-fa538b7a844a